[Event "Late-Titled-Tuesday-Blitz-January-30-2024"]
[Site "Chess.com"]
[Date "2024.01.30"]
[Round "8"]
[White "RantomOpening"]
[Black "sansanathalia"]
[Result "1-0"]
[WhiteElo "2531"]
[BlackElo "2396"]
[TimeControl "180+1"]
[EndTime "15:27:16 PST"]
[Termination "RantomOpening won on time"]

1. d4 {[%clk 0:03:00.8]} 1... Nf6 {[%clk 0:02:57.9]} 2. Bg5 {[%clk 0:03:00.7]}
2... d5 {[%clk 0:02:56.9]} 3. e3 {[%clk 0:02:59.6]} 3... e6 {[%clk 0:02:54.9]}
4. Nd2 {[%clk 0:02:56.8]} 4... Be7 {[%clk 0:02:53.9]} 5. c3 {[%clk 0:02:56.6]}
5... O-O {[%clk 0:02:51.4]} 6. f4 {[%clk 0:02:56.5]} 6... h6 {[%clk 0:02:49.8]}
7. Bxf6 {[%clk 0:02:56.3]} 7... Bxf6 {[%clk 0:02:49.7]} 8. Ngf3 {[%clk
0:02:53.8]} 8... c5 {[%clk 0:02:39.1]} 9. Bd3 {[%clk 0:02:52.4]} 9... Nc6 {[%clk
0:02:34.7]} 10. h4 {[%clk 0:02:46.1]} 10... cxd4 {[%clk 0:02:31.6]} 11. cxd4
{[%clk 0:02:45.3]} 11... h5 {[%clk 0:02:22.6]} 12. Ng5 {[%clk 0:02:43.4]} 12...
g6 {[%clk 0:02:14.5]} 13. g4 {[%clk 0:02:43.3]} 13... hxg4 {[%clk 0:02:10.9]}
14. Rg1 {[%clk 0:02:15]} 14... Kg7 {[%clk 0:01:56.4]} 15. Rxg4 {[%clk
0:02:13.4]} 15... Rh8 {[%clk 0:01:36.4]} 16. Qf3 {[%clk 0:02:04.3]} 16... Bxg5
{[%clk 0:01:32.2]} 17. fxg5 {[%clk 0:01:59.9]} 17... e5 {[%clk 0:01:31]} 18. Rg1
{[%clk 0:01:50.2]} 18... e4 {[%clk 0:01:24.4]} 19. Nxe4 {[%clk 0:01:39.5]} 19...
dxe4 {[%clk 0:01:22.6]} 20. Bxe4 {[%clk 0:01:40.4]} 20... Rxh4 {[%clk
0:01:13.5]} 21. O-O-O {[%clk 0:01:40.3]} 21... Qe7 {[%clk 0:00:44.7]} 22. Bb1
{[%clk 0:01:05]} 22... Rh3 {[%clk 0:00:40.9]} 23. Rg3 {[%clk 0:01:02.3]} 23...
Nxd4 {[%clk 0:00:23.2]} 24. Rxd4 {[%clk 0:00:56.9]} 24... Qc7+ {[%clk
0:00:21.8]} 25. Bc2 {[%clk 0:00:45]} 25... Bg4 {[%clk 0:00:09.3]} 26. Qf6+
{[%clk 0:00:43.4]} 26... Kg8 {[%clk 0:00:08.1]} 27. Rxh3 {[%clk 0:00:41.7]}
27... Bh5 {[%clk 0:00:04.4]} 28. Rxh5 {[%clk 0:00:31.5]} 28... gxh5 {[%clk
0:00:03.4]} 29. g6 {[%clk 0:00:32.2]} 29... Rc8 {[%clk 0:00:02]} 30. gxf7+
{[%clk 0:00:32.3]} 30... Kf8 {[%clk 0:00:02.1]} 31. Qh8+ {[%clk 0:00:30.3]}
31... Kxf7 {[%clk 0:00:01.2]} 32. Qh7+ {[%clk 0:00:29.2]} 32... Ke6 {[%clk
0:00:01.3]} 33. Re4+ {[%clk 0:00:28]} 33... Kd5 {[%clk 0:00:01.3]} 34. Qf5+
{[%clk 0:00:27.4]} 1-0

[Event "Late-Titled-Tuesday-Blitz-January-30-2024"]
[Site "Chess.com"]
[Date "2024.01.30"]
[Round "8"]
[White "Adar_07"]
[Black "vladislavkovalev"]
[Result "1-0"]
[WhiteElo "2703"]
[BlackElo "2862"]
[TimeControl "180+1"]
[EndTime "15:27:20 PST"]
[Termination "Adar_07 won on time"]

1. e4 {[%clk 0:03:00.9]} 1... e5 {[%clk 0:02:58.6]} 2. Nf3 {[%clk 0:03:00.9]}
2... Nc6 {[%clk 0:02:59.1]} 3. Bb5 {[%clk 0:03:01.4]} 3... a6 {[%clk 0:02:59.4]}
4. Ba4 {[%clk 0:03:00.6]} 4... Nf6 {[%clk 0:02:59.8]} 5. O-O {[%clk 0:02:58.1]}
5... Be7 {[%clk 0:03:00.1]} 6. Re1 {[%clk 0:02:43.4]} 6... b5 {[%clk 0:02:58.3]}
7. Bb3 {[%clk 0:02:43.5]} 7... d6 {[%clk 0:02:59]} 8. c3 {[%clk 0:02:43.1]} 8...
O-O {[%clk 0:02:59.4]} 9. h3 {[%clk 0:02:43.3]} 9... Be6 {[%clk 0:02:59.9]} 10.
d4 {[%clk 0:02:40.2]} 10... Bxb3 {[%clk 0:02:59.6]} 11. axb3 {[%clk 0:02:39.1]}
11... exd4 {[%clk 0:02:59.3]} 12. Nxd4 {[%clk 0:02:40]} 12... Qd7 {[%clk
0:02:56.3]} 13. Nf5 {[%clk 0:02:38.1]} 13... Rfe8 {[%clk 0:02:53.5]} 14. Bg5
{[%clk 0:02:29.7]} 14... h6 {[%clk 0:02:41.5]} 15. Bh4 {[%clk 0:02:19.8]} 15...
Ne5 {[%clk 0:02:31.5]} 16. Nd2 {[%clk 0:02:11.7]} 16... Ng6 {[%clk 0:02:22.8]}
17. Bg3 {[%clk 0:02:08.3]} 17... Bf8 {[%clk 0:02:19.2]} 18. b4 {[%clk
0:02:04.4]} 18... Nxe4 {[%clk 0:01:23.6]} 19. Nxh6+ {[%clk 0:02:01.9]} 19...
gxh6 {[%clk 0:01:24.5]} 20. Nxe4 {[%clk 0:01:56.1]} 20... Bg7 {[%clk 0:01:25.1]}
21. h4 {[%clk 0:01:52.8]} 21... Re6 {[%clk 0:01:20.5]} 22. h5 {[%clk 0:01:48.7]}
22... Ne5 {[%clk 0:01:18.8]} 23. f4 {[%clk 0:01:38.1]} 23... Nc4 {[%clk
0:01:06.2]} 24. b3 {[%clk 0:01:28.5]} 24... Rae8 {[%clk 0:00:58.4]} 25. Qg4
{[%clk 0:01:16.1]} 25... Qc6 {[%clk 0:00:19.8]} 26. bxc4 {[%clk 0:00:49.7]}
26... Rxe4 {[%clk 0:00:20.1]} 27. Rxe4 {[%clk 0:00:50.2]} 27... Rxe4 {[%clk
0:00:19.5]} 28. cxb5 {[%clk 0:00:41]} 28... axb5 {[%clk 0:00:20.4]} 29. Kh2
{[%clk 0:00:38.2]} 29... Qd5 {[%clk 0:00:09.3]} 30. Ra7 {[%clk 0:00:23.3]} 30...
Re7 {[%clk 0:00:02.3]} 31. Bh4 {[%clk 0:00:19]} 31... Re8 {[%clk 0:00:01.9]} 32.
Bf6 {[%clk 0:00:18.4]} 1-0

[Event "Late-Titled-Tuesday-Blitz-January-30-2024"]
[Site "Chess.com"]
[Date "2024.01.30"]
[Round "8"]
[White "Bkmzzzzz"]
[Black "tarno17"]
[Result "0-1"]
[WhiteElo "2331"]
[BlackElo "2113"]
[TimeControl "180+1"]
[EndTime "15:27:27 PST"]
[Termination "tarno17 won on time"]

1. e4 {[%clk 0:02:59.8]} 1... c5 {[%clk 0:02:59.8]} 2. Nf3 {[%clk 0:02:59.9]}
2... e6 {[%clk 0:03:00.5]} 3. d3 {[%clk 0:02:59.8]} 3... a6 {[%clk 0:02:59.7]}
4. g3 {[%clk 0:02:57.7]} 4... Qc7 {[%clk 0:02:58.2]} 5. Bg2 {[%clk 0:02:57.5]}
5... Nc6 {[%clk 0:02:57.5]} 6. O-O {[%clk 0:02:57.9]} 6... d6 {[%clk 0:02:57.4]}
7. c3 {[%clk 0:02:56.8]} 7... Nf6 {[%clk 0:02:56.9]} 8. Re1 {[%clk 0:02:52.3]}
8... Be7 {[%clk 0:02:55.7]} 9. d4 {[%clk 0:02:51]} 9... cxd4 {[%clk 0:02:55.3]}
10. cxd4 {[%clk 0:02:51.9]} 10... d5 {[%clk 0:02:46]} 11. Bf4 {[%clk 0:02:44.6]}
11... Qb6 {[%clk 0:02:36.6]} 12. e5 {[%clk 0:02:43.6]} 12... Ne4 {[%clk
0:02:27.9]} 13. Re2 {[%clk 0:02:27.3]} 13... O-O {[%clk 0:01:58.6]} 14. Be3
{[%clk 0:02:19.2]} 14... Bd7 {[%clk 0:01:54.3]} 15. Ne1 {[%clk 0:02:10.3]} 15...
Rac8 {[%clk 0:01:23.4]} 16. a3 {[%clk 0:01:50.1]} 16... Na5 {[%clk 0:01:19.4]}
17. b4 {[%clk 0:01:42.7]} 17... Nc4 {[%clk 0:01:13.3]} 18. Bc1 {[%clk
0:00:46.1]} 18... f5 {[%clk 0:00:36.7]} 19. f3 {[%clk 0:00:22.4]} 19... Ng5
{[%clk 0:00:34.1]} 20. h4 {[%clk 0:00:23.1]} 20... Nf7 {[%clk 0:00:33.5]} 21. f4
{[%clk 0:00:23.8]} 21... Nh6 {[%clk 0:00:32.9]} 22. Bf3 {[%clk 0:00:19.5]} 22...
Ng4 {[%clk 0:00:27.9]} 23. Bxg4 {[%clk 0:00:19.5]} 23... fxg4 {[%clk 0:00:28.6]}
24. Kh2 {[%clk 0:00:19.1]} 24... Be8 {[%clk 0:00:25]} 25. Ng2 {[%clk 0:00:17.8]}
25... Bg6 {[%clk 0:00:24.4]} 26. Ne3 {[%clk 0:00:17.2]} 26... h5 {[%clk
0:00:22.2]} 27. Nxc4 {[%clk 0:00:17]} 27... Rxc4 {[%clk 0:00:22.9]} 28. Be3
{[%clk 0:00:17.6]} 28... Rfc8 {[%clk 0:00:21.6]} 29. Nd2 {[%clk 0:00:17.6]}
29... Rc2 {[%clk 0:00:21.2]} 30. Nb3 {[%clk 0:00:17.5]} 30... Qb5 {[%clk
0:00:17.4]} 31. Rxc2 {[%clk 0:00:10]} 31... Bxc2 {[%clk 0:00:16.9]} 32. Qc1
{[%clk 0:00:03.8]} 32... Qe2+ {[%clk 0:00:14.5]} 33. Kg1 {[%clk 0:00:02.5]}
33... Rc3 {[%clk 0:00:13.6]} 0-1

[Event "Late-Titled-Tuesday-Blitz-January-30-2024"]
[Site "Chess.com"]
[Date "2024.01.30"]
[Round "8"]
[White "BeardedNM"]
[Black "Doudou2015"]
[Result "1-0"]
[WhiteElo "2187"]
[BlackElo "2182"]
[TimeControl "180+1"]
[EndTime "15:27:31 PST"]
[Termination "BeardedNM won by resignation"]

1. e4 {[%clk 0:02:53.1]} 1... c5 {[%clk 0:02:57.4]} 2. Nf3 {[%clk 0:02:53.1]}
2... Nc6 {[%clk 0:02:57.6]} 3. d4 {[%clk 0:02:53.7]} 3... cxd4 {[%clk
0:02:58.5]} 4. Nxd4 {[%clk 0:02:54.5]} 4... e5 {[%clk 0:02:58.4]} 5. Nb5 {[%clk
0:02:54.8]} 5... a6 {[%clk 0:02:57.4]} 6. Nd6+ {[%clk 0:02:54.5]} 6... Bxd6
{[%clk 0:02:57.9]} 7. Qxd6 {[%clk 0:02:55.2]} 7... Qf6 {[%clk 0:02:58.3]} 8. Qd1
{[%clk 0:02:55.8]} 8... Qg6 {[%clk 0:02:58]} 9. Nc3 {[%clk 0:02:56.4]} 9... Nge7
{[%clk 0:02:57.3]} 10. h4 {[%clk 0:02:46.4]} 10... h5 {[%clk 0:02:55.8]} 11. Bg5
{[%clk 0:02:43.3]} 11... f6 {[%clk 0:02:55.2]} 12. Be3 {[%clk 0:02:43]} 12... d5
{[%clk 0:02:49.1]} 13. Nxd5 {[%clk 0:02:40.6]} 13... Qxe4 {[%clk 0:02:05.7]} 14.
Nc7+ {[%clk 0:02:35.1]} 14... Kf7 {[%clk 0:02:02.7]} 15. Nxa8 {[%clk 0:02:22.2]}
15... Bg4 {[%clk 0:01:55.6]} 16. Qd3 {[%clk 0:02:10.1]} 16... Qxd3 {[%clk
0:01:46.8]} 17. Bxd3 {[%clk 0:02:04]} 17... Rxa8 {[%clk 0:01:47.7]} 18. f3
{[%clk 0:01:59.9]} 18... Be6 {[%clk 0:01:45.4]} 19. O-O-O {[%clk 0:01:57.5]}
19... Nb4 {[%clk 0:01:41]} 20. a3 {[%clk 0:01:55]} 20... Nbd5 {[%clk 0:01:31.3]}
21. Bd2 {[%clk 0:01:38.2]} 21... Rc8 {[%clk 0:01:29.6]} 22. Kb1 {[%clk
0:01:38.1]} 22... b5 {[%clk 0:01:20.2]} 23. Rhe1 {[%clk 0:01:33.5]} 23... Nc6
{[%clk 0:01:11.8]} 24. Be4 {[%clk 0:01:30.2]} 24... Nd4 {[%clk 0:01:08.7]} 25.
Bxd5 {[%clk 0:01:10.5]} 25... Bxd5 {[%clk 0:01:09.6]} 26. Be3 {[%clk 0:01:10.6]}
26... Nxc2 {[%clk 0:00:59.7]} 27. Re2 {[%clk 0:00:49]} 27... Nxe3 {[%clk
0:00:32.4]} 28. Rxe3 {[%clk 0:00:49.1]} 28... Be6 {[%clk 0:00:33]} 29. Rc3
{[%clk 0:00:35.8]} 29... Bf5+ {[%clk 0:00:26.6]} 30. Kc1 {[%clk 0:00:31.9]}
30... Ra8 {[%clk 0:00:20.3]} 31. Rd6 {[%clk 0:00:20.8]} 31... a5 {[%clk
0:00:17.4]} 32. Rc7+ {[%clk 0:00:16.2]} 32... Kf8 {[%clk 0:00:05.2]} 33. Rb6
{[%clk 0:00:15.6]} 33... b4 {[%clk 0:00:04.8]} 34. axb4 {[%clk 0:00:15.4]} 34...
a4 {[%clk 0:00:05.7]} 35. Rcb7 {[%clk 0:00:11.7]} 35... Rb8 {[%clk 0:00:02.5]}
36. Rxb8+ {[%clk 0:00:11.3]} 1-0

[Event "Late-Titled-Tuesday-Blitz-January-30-2024"]
[Site "Chess.com"]
[Date "2024.01.30"]
[Round "8"]
[White "annasargsyan_m"]
[Black "TheMagician"]
[Result "1-0"]
[WhiteElo "2535"]
[BlackElo "2229"]
[TimeControl "180+1"]
[EndTime "15:27:34 PST"]
[Termination "annasargsyan_m won on time"]

1. d4 {[%clk 0:02:46.2]} 1... Nf6 {[%clk 0:02:59.3]} 2. c4 {[%clk 0:02:46.3]}
2... g6 {[%clk 0:02:56.9]} 3. g3 {[%clk 0:02:45.7]} 3... Bg7 {[%clk 0:02:57.2]}
4. Bg2 {[%clk 0:02:46.4]} 4... O-O {[%clk 0:02:57.5]} 5. Nc3 {[%clk 0:02:46.8]}
5... d6 {[%clk 0:02:57.9]} 6. Nf3 {[%clk 0:02:46.6]} 6... c5 {[%clk 0:02:57.2]}
7. O-O {[%clk 0:02:46.9]} 7... cxd4 {[%clk 0:02:57.3]} 8. Nxd4 {[%clk
0:02:47.8]} 8... h6 {[%clk 0:02:53.7]} 9. e4 {[%clk 0:02:46.8]} 9... Nc6 {[%clk
0:02:49.4]} 10. Nxc6 {[%clk 0:02:45.7]} 10... bxc6 {[%clk 0:02:49.6]} 11. h3
{[%clk 0:02:46.4]} 11... Rb8 {[%clk 0:02:47.4]} 12. Qc2 {[%clk 0:02:45.9]} 12...
Be6 {[%clk 0:02:45.8]} 13. b3 {[%clk 0:02:44.7]} 13... Qc8 {[%clk 0:02:43.6]}
14. Kh2 {[%clk 0:02:44.3]} 14... d5 {[%clk 0:02:42.8]} 15. e5 {[%clk 0:02:41.2]}
15... Nd7 {[%clk 0:02:35.8]} 16. f4 {[%clk 0:02:40.9]} 16... dxc4 {[%clk
0:02:34]} 17. bxc4 {[%clk 0:02:41.8]} 17... Bxc4 {[%clk 0:02:33.2]} 18. Rd1
{[%clk 0:02:42.5]} 18... Nb6 {[%clk 0:02:32.7]} 19. Be3 {[%clk 0:02:40.8]} 19...
Nd5 {[%clk 0:02:26.2]} 20. Bc5 {[%clk 0:02:40.6]} 20... Qb7 {[%clk 0:02:16]} 21.
Ne4 {[%clk 0:02:34.7]} 21... Ba6 {[%clk 0:02:03.2]} 22. Ba3 {[%clk 0:02:23.7]}
22... Rfc8 {[%clk 0:01:54.1]} 23. Nc5 {[%clk 0:02:22.1]} 23... Qb5 {[%clk
0:01:16.5]} 24. Bf1 {[%clk 0:02:15.5]} 24... Qxf1 {[%clk 0:01:13.5]} 25. Rxf1
{[%clk 0:02:14.8]} 25... Ne3 {[%clk 0:01:13.8]} 26. Qf2 {[%clk 0:01:59.4]} 26...
Nxf1+ {[%clk 0:01:13.3]} 27. Rxf1 {[%clk 0:01:56.8]} 27... Bxf1 {[%clk
0:01:12.9]} 28. Qxf1 {[%clk 0:01:57.5]} 28... Rb5 {[%clk 0:01:04.8]} 29. h4
{[%clk 0:01:57.3]} 29... e6 {[%clk 0:01:04.2]} 30. Ne4 {[%clk 0:01:56.5]} 30...
Rcb8 {[%clk 0:00:51.1]} 31. h5 {[%clk 0:01:53.5]} 31... Ra5 {[%clk 0:00:49.5]}
32. Qd3 {[%clk 0:01:52.4]} 32... gxh5 {[%clk 0:00:44.6]} 33. Kh3 {[%clk
0:01:49.2]} 33... Rd5 {[%clk 0:00:39.5]} 34. Qc2 {[%clk 0:01:47.2]} 34... c5
{[%clk 0:00:39.6]} 35. Bxc5 {[%clk 0:01:45.5]} 35... Rc8 {[%clk 0:00:38.9]} 36.
Qf2 {[%clk 0:01:45]} 36... a5 {[%clk 0:00:35]} 37. Be7 {[%clk 0:01:33.3]} 37...
Rc4 {[%clk 0:00:33.1]} 38. Nf6+ {[%clk 0:01:31.6]} 38... Bxf6 {[%clk 0:00:32.1]}
39. Bxf6 {[%clk 0:01:32.5]} 39... Rd1 {[%clk 0:00:21.8]} 40. Qa7 {[%clk
0:01:28]} 40... Rc8 {[%clk 0:00:19.7]} 41. Qb7 {[%clk 0:01:27]} 41... Rdc1
{[%clk 0:00:18.7]} 42. Kh4 {[%clk 0:01:20.6]} 42... R1c7 {[%clk 0:00:08.7]} 43.
Qf3 {[%clk 0:01:12.4]} 43... Rc1 {[%clk 0:00:06.4]} 44. Kxh5 {[%clk 0:01:10.7]}
44... R8c3 {[%clk 0:00:04.2]} 45. Qg4+ {[%clk 0:01:10.3]} 45... Kf8 {[%clk
0:00:02.5]} 46. Qg7+ {[%clk 0:01:10]} 46... Ke8 {[%clk 0:00:02.9]} 47. Qg8+
{[%clk 0:01:08.2]} 47... Kd7 {[%clk 0:00:03.3]} 48. Qxf7+ {[%clk 0:01:07.8]}
48... Kc6 {[%clk 0:00:04]} 49. Qxe6+ {[%clk 0:01:08]} 49... Kb5 {[%clk
0:00:04.7]} 50. Qd7+ {[%clk 0:00:59]} 50... Kc4 {[%clk 0:00:03.6]} 51. Qe6+
{[%clk 0:00:52.6]} 1-0

[Event "Late-Titled-Tuesday-Blitz-January-30-2024"]
[Site "Chess.com"]
[Date "2024.01.30"]
[Round "8"]
[White "ARTHURMOTIVATOR"]
[Black "DeArron_Fox"]
[Result "1-0"]
[WhiteElo "2317"]
[BlackElo "2473"]
[TimeControl "180+1"]
[EndTime "15:27:36 PST"]
[Termination "ARTHURMOTIVATOR won by resignation"]

1. e4 {[%clk 0:02:29.2]} 1... c5 {[%clk 0:02:29]} 2. Nf3 {[%clk 0:02:28.2]} 2...
e6 {[%clk 0:02:29.3]} 3. d4 {[%clk 0:02:28.4]} 3... cxd4 {[%clk 0:02:30.2]} 4.
Nxd4 {[%clk 0:02:28.9]} 4... a6 {[%clk 0:02:30.8]} 5. Nc3 {[%clk 0:02:29.1]}
5... b5 {[%clk 0:02:29.8]} 6. Bd3 {[%clk 0:02:25.1]} 6... Bb7 {[%clk 0:02:16.2]}
7. O-O {[%clk 0:02:23.6]} 7... Nc6 {[%clk 0:02:16.7]} 8. Nf3 {[%clk 0:02:23.8]}
8... b4 {[%clk 0:01:55.7]} 9. Nd5 {[%clk 0:02:14.6]} 9... Bc5 {[%clk 0:01:26.8]}
10. Qe2 {[%clk 0:01:56.3]} 10... Nge7 {[%clk 0:01:14.2]} 11. Nxe7 {[%clk
0:01:42.8]} 11... Nxe7 {[%clk 0:01:15.1]} 12. e5 {[%clk 0:01:37.3]} 12... Qc7
{[%clk 0:00:52.4]} 13. Ng5 {[%clk 0:01:15.8]} 13... Ng6 {[%clk 0:00:44.4]} 14.
Re1 {[%clk 0:01:09.2]} 14... Bd4 {[%clk 0:00:34.9]} 15. Qh5 {[%clk 0:00:45.4]}
15... Bxe5 {[%clk 0:00:16.6]} 16. Nxf7 {[%clk 0:00:43.3]} 16... Bxh2+ {[%clk
0:00:10.5]} 17. Qxh2 {[%clk 0:00:37.7]} 17... Qxh2+ {[%clk 0:00:11.4]} 18. Kxh2
{[%clk 0:00:38.3]} 18... Kxf7 {[%clk 0:00:12.3]} 19. Be4 {[%clk 0:00:33.4]}
19... Bxe4 {[%clk 0:00:08.2]} 20. Rxe4 {[%clk 0:00:34.3]} 20... a5 {[%clk
0:00:08.8]} 21. a3 {[%clk 0:00:33.8]} 21... Rac8 {[%clk 0:00:05.5]} 22. axb4
{[%clk 0:00:31.6]} 22... axb4 {[%clk 0:00:06.4]} 23. Ra7 {[%clk 0:00:31.2]}
23... Ke8 {[%clk 0:00:01.6]} 24. Bd2 {[%clk 0:00:29.4]} 24... Rxc2 {[%clk
0:00:01.3]} 25. Bxb4 {[%clk 0:00:26.4]} 25... d5 {[%clk 0:00:01.6]} 26. Rxe6+
{[%clk 0:00:25.5]} 26... Kd8 {[%clk 0:00:01.5]} 27. Rd6+ {[%clk 0:00:24.1]}
27... Kc8 {[%clk 0:00:01.7]} 28. Ra8+ {[%clk 0:00:23.7]} 28... Kb7 {[%clk
0:00:02.3]} 29. Ra5 {[%clk 0:00:22.5]} 29... Rxb2 {[%clk 0:00:01.9]} 30. Rb5+
{[%clk 0:00:22.1]} 30... Kc7 {[%clk 0:00:02.6]} 31. Rdxd5 {[%clk 0:00:20.5]}
31... Nf8 {[%clk 0:00:01.7]} 32. Ba5+ {[%clk 0:00:19.9]} 32... Kc6 {[%clk
0:00:02.4]} 33. Rdc5+ {[%clk 0:00:19.9]} 33... Kd6 {[%clk 0:00:02.2]} 34. Bc7+
{[%clk 0:00:20.4]} 34... Kd7 {[%clk 0:00:01.6]} 35. Rxb2 {[%clk 0:00:20.5]}
35... Ne6 {[%clk 0:00:02.5]} 36. Rd2+ {[%clk 0:00:20]} 36... Kc8 {[%clk
0:00:01.8]} 37. Rc6 {[%clk 0:00:19.6]} 37... Nxc7 {[%clk 0:00:01.5]} 38. Rdc2
{[%clk 0:00:20.1]} 1-0

[Event "Late-Titled-Tuesday-Blitz-January-30-2024"]
[Site "Chess.com"]
[Date "2024.01.30"]
[Round "8"]
[White "Meri-Arabidze"]
[Black "only_strong_moves"]
[Result "0-1"]
[WhiteElo "2724"]
[BlackElo "2557"]
[TimeControl "180+1"]
[EndTime "15:27:38 PST"]
[Termination "only_strong_moves won on time"]

1. Nf3 {[%clk 0:03:00.9]} 1... Nf6 {[%clk 0:02:51.9]} 2. b3 {[%clk 0:03:01.4]}
2... d5 {[%clk 0:02:50.6]} 3. Bb2 {[%clk 0:03:01.9]} 3... e6 {[%clk 0:02:50.8]}
4. e3 {[%clk 0:03:01.5]} 4... Be7 {[%clk 0:02:51]} 5. c4 {[%clk 0:03:01.8]} 5...
O-O {[%clk 0:02:51.3]} 6. Qc2 {[%clk 0:03:01.7]} 6... c5 {[%clk 0:02:49.5]} 7.
Be2 {[%clk 0:02:53.4]} 7... Nc6 {[%clk 0:02:49.2]} 8. O-O {[%clk 0:02:51.3]}
8... d4 {[%clk 0:02:47]} 9. a3 {[%clk 0:02:49.6]} 9... a5 {[%clk 0:02:46.3]} 10.
d3 {[%clk 0:02:47.3]} 10... e5 {[%clk 0:02:41.9]} 11. e4 {[%clk 0:02:38.8]}
11... g6 {[%clk 0:02:42]} 12. Bc1 {[%clk 0:02:38]} 12... Nh5 {[%clk 0:02:41.9]}
13. Bh6 {[%clk 0:02:37.8]} 13... Re8 {[%clk 0:02:41.2]} 14. g3 {[%clk
0:02:35.5]} 14... Bh3 {[%clk 0:02:37.9]} 15. Re1 {[%clk 0:02:34.9]} 15... Bf8
{[%clk 0:02:33.6]} 16. Bxf8 {[%clk 0:02:33.4]} 16... Rxf8 {[%clk 0:02:34.5]} 17.
Bf1 {[%clk 0:02:32]} 17... Bxf1 {[%clk 0:02:32.5]} 18. Kxf1 {[%clk 0:02:30.9]}
18... f5 {[%clk 0:02:33.4]} 19. exf5 {[%clk 0:02:26.9]} 19... Rxf5 {[%clk
0:02:32.2]} 20. Nh4 {[%clk 0:02:22.8]} 20... Rf7 {[%clk 0:02:28.5]} 21. Nd2
{[%clk 0:02:21.6]} 21... Qd7 {[%clk 0:02:25.7]} 22. Ne4 {[%clk 0:02:12.3]} 22...
Raf8 {[%clk 0:02:16.7]} 23. Kg1 {[%clk 0:02:04.8]} 23... b6 {[%clk 0:02:07.8]}
24. Qe2 {[%clk 0:01:58.2]} 24... Kg7 {[%clk 0:02:01.9]} 25. Rf1 {[%clk
0:01:41.3]} 25... h6 {[%clk 0:01:57]} 26. Rae1 {[%clk 0:01:36.5]} 26... Nd8
{[%clk 0:01:42.7]} 27. Rb1 {[%clk 0:01:21.3]} 27... Ne6 {[%clk 0:01:40.8]} 28.
Nd2 {[%clk 0:01:15]} 28... Qc7 {[%clk 0:01:39.3]} 29. Rbe1 {[%clk 0:01:13.7]}
29... Ng5 {[%clk 0:01:11.7]} 30. Kg2 {[%clk 0:00:42.9]} 30... Nf4+ {[%clk
0:01:02.2]} 31. gxf4 {[%clk 0:00:38.7]} 31... Rxf4 {[%clk 0:01:03.1]} 32. Nxg6
{[%clk 0:00:06.3]} 32... Kxg6 {[%clk 0:01:00.3]} 33. Qxe5 {[%clk 0:00:05.7]}
33... Qd7 {[%clk 0:00:49.1]} 34. f3 {[%clk 0:00:03.2]} 34... Qh3+ {[%clk
0:00:48.4]} 35. Kh1 {[%clk 0:00:03.5]} 35... Qd7 {[%clk 0:00:17.9]} 36. Rg1
{[%clk 0:00:02.8]} 36... Kh7 {[%clk 0:00:17.7]} 37. Ne4 {[%clk 0:00:02.5]} 37...
Nxf3 {[%clk 0:00:17.8]} 0-1

[Event "Late-Titled-Tuesday-Blitz-January-30-2024"]
[Site "Chess.com"]
[Date "2024.01.30"]
[Round "8"]
[White "josmito10"]
[Black "LiemLe"]
[Result "1-0"]
[WhiteElo "2844"]
[BlackElo "3027"]
[TimeControl "180+1"]
[EndTime "15:27:44 PST"]
[Termination "josmito10 won on time"]

1. e4 {[%clk 0:02:59.2]} 1... c5 {[%clk 0:02:59.8]} 2. Nf3 {[%clk 0:02:59.3]}
2... Nc6 {[%clk 0:02:59.7]} 3. c3 {[%clk 0:02:59.5]} 3... Nf6 {[%clk 0:02:57.2]}
4. e5 {[%clk 0:02:59.7]} 4... Nd5 {[%clk 0:02:57.8]} 5. d4 {[%clk 0:03:00.6]}
5... cxd4 {[%clk 0:02:57.4]} 6. cxd4 {[%clk 0:03:01.5]} 6... d6 {[%clk
0:02:55.9]} 7. Bc4 {[%clk 0:03:01.7]} 7... dxe5 {[%clk 0:02:52.9]} 8. Bxd5
{[%clk 0:03:01.6]} 8... Qxd5 {[%clk 0:02:51.5]} 9. Nc3 {[%clk 0:03:02.5]} 9...
Qa5 {[%clk 0:02:45.6]} 10. d5 {[%clk 0:03:02.5]} 10... Nb8 {[%clk 0:02:11.3]}
11. Nxe5 {[%clk 0:02:59.9]} 11... Nd7 {[%clk 0:02:09.7]} 12. Nc4 {[%clk
0:02:50.5]} 12... Qa6 {[%clk 0:02:09.9]} 13. Qe2 {[%clk 0:02:48.3]} 13... Nf6
{[%clk 0:01:43.6]} 14. Nb5 {[%clk 0:02:44]} 14... Kd8 {[%clk 0:00:29.1]} 15. Ne5
{[%clk 0:02:40.8]} 15... Bg4 {[%clk 0:00:28.5]} 16. Nxf7+ {[%clk 0:02:26.5]}
16... Ke8 {[%clk 0:00:26.5]} 17. f3 {[%clk 0:01:22.2]} 17... Kxf7 {[%clk
0:00:20.4]} 18. fxg4 {[%clk 0:01:22.2]} 18... Rd8 {[%clk 0:00:19.3]} 19. O-O
{[%clk 0:01:10.4]} 19... Rxd5 {[%clk 0:00:19.4]} 20. a4 {[%clk 0:01:04.4]} 20...
g5 {[%clk 0:00:19.7]} 21. Kh1 {[%clk 0:01:01.7]} 21... Bg7 {[%clk 0:00:19.8]}
22. Qf3 {[%clk 0:00:50.9]} 22... Qc6 {[%clk 0:00:17.4]} 23. Be3 {[%clk
0:00:45.6]} 23... a6 {[%clk 0:00:16.9]} 24. Nd4 {[%clk 0:00:45.5]} 24... Qd7
{[%clk 0:00:16.4]} 25. Nf5 {[%clk 0:00:45.5]} 25... h6 {[%clk 0:00:15.6]} 26.
Rae1 {[%clk 0:00:44.4]} 26... Re8 {[%clk 0:00:15.3]} 27. Bc1 {[%clk 0:00:36.5]}
27... Kg8 {[%clk 0:00:13.2]} 28. b4 {[%clk 0:00:34]} 28... Bf8 {[%clk
0:00:12.9]} 29. Bb2 {[%clk 0:00:33.5]} 29... Rd3 {[%clk 0:00:12.4]} 30. Re3
{[%clk 0:00:25.8]} 30... Rxe3 {[%clk 0:00:12.8]} 31. Qxe3 {[%clk 0:00:26.7]}
31... Nxg4 {[%clk 0:00:11.6]} 32. Qb3+ {[%clk 0:00:25.4]} 32... e6 {[%clk
0:00:11.3]} 33. h3 {[%clk 0:00:19.2]} 33... Kh7 {[%clk 0:00:06.1]} 34. Ng3
{[%clk 0:00:11.5]} 34... Bg7 {[%clk 0:00:02.6]} 35. Qc2+ {[%clk 0:00:11.2]}
35... Kg8 {[%clk 0:00:02.6]} 36. hxg4 {[%clk 0:00:11.4]} 36... Bxb2 {[%clk
0:00:02.1]} 37. Qxb2 {[%clk 0:00:12.3]} 37... Qd3 {[%clk 0:00:02.3]} 38. Qf2
{[%clk 0:00:12.3]} 38... Qg6 {[%clk 0:00:01.3]} 39. Nh5 {[%clk 0:00:12.4]} 1-0